{"text_format":"3","workbook":"xlsx","n_sheets":1,"sheets":["الفاتورة"],"not_rendered":{"defined_names":6},"read":"whole","date_system":"1900"}

{"sheet":"الفاتورة","index":0,"n_rows":26,"n_cols":7,"rows_kept":26,"merged":[[0,1,0,2],[1,1,1,2],[1,3,1,4],[1,5,1,6],[2,1,2,2],[2,3,2,4],[2,5,2,6],[3,1,3,2],[3,3,3,4],[4,1,4,2],[4,3,4,4],[5,3,5,4],[24,1,24,4],[25,1,25,4]]}
[null,"اسم الشركة"]
[null,"عنوان الشارع",null,"رقم الهاتف: رقم الهاتف",null,"البريد الإلكتروني"]
[null,"المدينة، الرمز البريدي للمنطقة",null,"رقم الفاكس: رقم الفاكس",null,"موقع الويب"]
[null,"فوترة إلى:",null,{"$f":"\"الهاتف:   \"","v":"الهاتف:   "},null,"رقم الفاتورة:"]
[null,"العنوان:",null,{"$f":"\"الفاكس:    \"","v":"الفاكس:    "},null,"تاريخ الفاتورة:"]
[{"$nulls":3},{"$f":"\"البريد الإلكتروني:   \"","v":"البريد الإلكتروني:   "}]
[null,{"$f":"\"فاتورة لـ: \"","v":"فاتورة لـ: "}]
[null,"رقم العنصر","الوصف","الكمية","سعر الوحدة","الخصم","السعر"]
[{"$nulls":6},{"$f":"IFERROR((D9*E9)-F9,\"\")","v":0}]
[{"$nulls":6},0]
[{"$nulls":6},0]
[{"$nulls":6},0]
[{"$nulls":6},0]
[{"$nulls":6},0]
[{"$nulls":6},0]
[{"$nulls":6},0]
[{"$nulls":6},0]
[{"$nulls":6},0]
[{"$nulls":6},0]
[{"$nulls":6},0]
[{"$nulls":5},"الإجمالي الفرعي للفاتورة",{"$f":"SUM(SimpleInvoice[السعر])","v":0}]
[{"$nulls":5},"معدل الضريبة"]
[{"$nulls":5},"ضريبة المبيعات",{"$f":"IFERROR(G21*G22,\"\")","v":0}]
[{"$nulls":5},"أخرى"]
[null,{"$f":"\"يتم دفع كل الشيكات إلى \"&اسم_الشركة&\".\"","v":"يتم دفع كل الشيكات إلى اسم الشركة."},{"$nulls":3},"المبلغ المُستلم"]
[null,"الإجمالي المستحق في <#> من الأيام. تخضع الحسابات المتأخرة إلى رسوم خدمة بنسبة <#>% في الشهر.",{"$nulls":3},"الإجمالي",{"$f":"IFERROR((G21+G23+G24)-G25,\"\")","v":0}]